[Event "Titled Tuesday Blitz June 07 Late 2022"]
[White "Moroni, Luca Jr"]
[Black "Terry, Renato"]
[WhiteFideId "865834"]
[BlackFideId "3803457"]
[WhiteElo "2573"]
[BlackElo "2577"]
[Result "0-1"]
[Round "06"]
[TimeControl "180+1"]
[Date "2022.06.07"]
[WhiteClock "0:00:05"]
[BlackClock "0:00:27"]

1. d4 {[%clk 0:03:00]}  d5 {[%clk 0:02:59]} 2. Bf4 {[%clk 0:03:00]}  Nf6 {[%clk 0:02:57]} 3. e3 {[%clk 0:03:00]}  c5 {[%clk 0:02:57]} 4. Nf3 {[%clk 0:02:58]}  Nc6 {[%clk 0:02:57]} 5. Nbd2 {[%clk 0:02:57]}  Bg4 {[%clk 0:02:55]} 6. c3 {[%clk 0:02:57]}  e6 {[%clk 0:02:56]} 7. Qb3 {[%clk 0:02:57]}  Qb6 {[%clk 0:02:54]} 8. Qxb6 {[%clk 0:02:49]}  axb6 {[%clk 0:02:55]} 9. Bb5 {[%clk 0:02:47]}  Nd7 {[%clk 0:02:52]} 10. h3 {[%clk 0:02:43]}  Bh5 {[%clk 0:02:41]} 11. Ne5 {[%clk 0:02:33]}  Ndxe5 {[%clk 0:02:26]} 12. Bxe5 {[%clk 0:02:34]}  Kd7 {[%clk 0:02:26]} 13. O-O {[%clk 0:02:22]}  f6 {[%clk 0:02:24]} 14. Bg3 {[%clk 0:02:21]}  Bd6 {[%clk 0:02:24]} 15. Bxd6 {[%clk 0:01:57]}  Kxd6 {[%clk 0:02:25]} 16. Rfe1 {[%clk 0:01:41]}  Rhd8 {[%clk 0:02:21]} 17. a3 {[%clk 0:01:34]}  Na5 {[%clk 0:02:07]} 18. e4 {[%clk 0:01:26]}  cxd4 {[%clk 0:02:07]} 19. cxd4 {[%clk 0:01:26]}  Rac8 {[%clk 0:01:59]} 20. e5+ {[%clk 0:01:05]}  Ke7 {[%clk 0:01:56]} 21. Bd3 {[%clk 0:00:59]}  Bg6 {[%clk 0:01:54]} 22. Bxg6 {[%clk 0:00:50]}  hxg6 {[%clk 0:01:55]} 23. exf6+ {[%clk 0:00:45]}  gxf6 {[%clk 0:01:56]} 24. Rac1 {[%clk 0:00:43]}  b5 {[%clk 0:01:53]} 25. Nf3 {[%clk 0:00:32]}  Nb3 {[%clk 0:01:41]} 26. Rcd1 {[%clk 0:00:32]}  Rc2 {[%clk 0:01:38]} 27. Re3 {[%clk 0:00:31]}  Rxb2 {[%clk 0:01:36]} 28. Rc3 {[%clk 0:00:22]}  Na5 {[%clk 0:01:33]} 29. Ne1 {[%clk 0:00:17]}  Nc4 {[%clk 0:01:28]} 30. Nd3 {[%clk 0:00:16]}  Ra2 {[%clk 0:01:28]} 31. Rb1 {[%clk 0:00:11]}  Rxa3 {[%clk 0:01:26]} 32. Rxa3 {[%clk 0:00:08]}  Nxa3 {[%clk 0:01:26]} 33. Rb3 {[%clk 0:00:09]}  Ra8 {[%clk 0:01:27]} 34. h4 {[%clk 0:00:07]}  Ra7 {[%clk 0:01:19]} 35. g4 {[%clk 0:00:06]}  Nc2 {[%clk 0:01:19]} 36. Rxb5 {[%clk 0:00:02]}  Nxd4 {[%clk 0:01:20]} 37. Rb6 {[%clk 0:00:03]}  Nf3+ {[%clk 0:01:15]} 38. Kg2 {[%clk 0:00:03]}  Nxh4+ {[%clk 0:01:16]} 39. Kg3 {[%clk 0:00:04]}  g5 {[%clk 0:01:16]} 40. Nc5 {[%clk 0:00:04]}  e5 {[%clk 0:01:13]} 41. Re6+ {[%clk 0:00:04]}  Kf7 {[%clk 0:01:13]} 42. Rd6 {[%clk 0:00:04]}  Ra3+ {[%clk 0:01:08]} 43. Kh2 {[%clk 0:00:05]}  d4 {[%clk 0:01:06]} 44. Rd7+ {[%clk 0:00:04]}  Ke8 {[%clk 0:01:01]} 45. Rxb7 {[%clk 0:00:04]}  Rf3 {[%clk 0:01:00]} 46. Ne4 {[%clk 0:00:04]}  Rf4 {[%clk 0:01:01]} 47. Nd6+ {[%clk 0:00:04]}  Kf8 {[%clk 0:01:01]} 48. Rf7+ {[%clk 0:00:04]}  Kg8 {[%clk 0:01:01]} 49. Rd7 {[%clk 0:00:04]}  Rxf2+ {[%clk 0:00:59]} 50. Kg3 {[%clk 0:00:04]}  Rf3+ {[%clk 0:00:59]} 51. Kh2 {[%clk 0:00:05]}  d3 {[%clk 0:00:39]} 52. Ne4 {[%clk 0:00:05]}  Rf4 {[%clk 0:00:40]} 53. Nc5 {[%clk 0:00:05]}  Rxg4 {[%clk 0:00:37]} 54. Ne6 {[%clk 0:00:05]}  Nf3+ {[%clk 0:00:26]} 55. Kh3 {[%clk 0:00:05]}  Rg1 {[%clk 0:00:27]} 56. Rg7+ {[%clk 0:00:04]}  Kh8 {[%clk 0:00:28]} 57. Rd7 {[%clk 0:00:05]}  g4# {[%clk 0:00:27]} 0-1


[Site "https://www.chess.com"]

[Event "Titled Tuesday Blitz June 07 Late 2022"]
[White "Moussard, Jules"]
[Black "Dounis, Alexandros"]
[WhiteFideId "642908"]
[BlackFideId "4213238"]
[WhiteElo "2589"]
[BlackElo "2204"]
[Result "1/2-1/2"]
[Round "06"]
[TimeControl "180+1"]
[Date "2022.06.07"]
[WhiteClock "0:00:09"]
[BlackClock "0:00:26"]

1. f4 {[%clk 0:03:00]}  e5 {[%clk 0:02:58]} 2. fxe5 {[%clk 0:03:00]}  d6 {[%clk 0:02:57]} 3. exd6 {[%clk 0:03:01]}  Bxd6 {[%clk 0:02:57]} 4. Nf3 {[%clk 0:03:01]}  Nf6 {[%clk 0:02:56]} 5. Nc3 {[%clk 0:02:52]}  Ng4 {[%clk 0:02:51]} 6. Ne4 {[%clk 0:02:29]}  Nxh2 {[%clk 0:02:43]} 7. d4 {[%clk 0:02:22]}  Nxf1 {[%clk 0:02:34]} 8. Rxf1 {[%clk 0:02:15]}  Bf5 {[%clk 0:02:34]} 9. Nxd6+ {[%clk 0:02:14]}  Qxd6 {[%clk 0:02:35]} 10. Qd2 {[%clk 0:02:09]}  Qg3+ {[%clk 0:02:35]} 11. Rf2 {[%clk 0:02:07]}  O-O {[%clk 0:02:33]} 12. Qf4 {[%clk 0:02:02]}  Qxf4 {[%clk 0:02:32]} 13. Bxf4 {[%clk 0:02:03]}  Bxc2 {[%clk 0:02:25]} 14. Rc1 {[%clk 0:02:01]}  Be4 {[%clk 0:02:23]} 15. Rxc7 {[%clk 0:01:59]}  Na6 {[%clk 0:02:24]} 16. Re7 {[%clk 0:01:58]}  Rfe8 {[%clk 0:02:21]} 17. Rxe8+ {[%clk 0:01:29]}  Rxe8 {[%clk 0:02:21]} 18. a3 {[%clk 0:01:29]}  Nb8 {[%clk 0:02:17]} 19. Bxb8 {[%clk 0:01:17]}  Rxb8 {[%clk 0:02:17]} 20. Nd2 {[%clk 0:01:17]}  Re8 {[%clk 0:02:12]} 21. g3 {[%clk 0:01:15]}  g6 {[%clk 0:02:05]} 22. Nc4 {[%clk 0:01:11]}  Bd5 {[%clk 0:01:54]} 23. Ne5 {[%clk 0:01:00]}  Rc8 {[%clk 0:01:52]} 24. Kd2 {[%clk 0:01:01]}  f5 {[%clk 0:01:48]} 25. g4 {[%clk 0:01:01]}  Be4 {[%clk 0:01:48]} 26. gxf5 {[%clk 0:01:01]}  Bxf5 {[%clk 0:01:44]} 27. Rf4 {[%clk 0:01:00]}  Rc2+ {[%clk 0:01:42]} 28. Kd1 {[%clk 0:01:00]}  Rxb2 {[%clk 0:01:43]} 29. e4 {[%clk 0:01:01]}  Bh3 {[%clk 0:01:30]} 30. d5 {[%clk 0:01:00]}  Rb6 {[%clk 0:01:24]} 31. Kd2 {[%clk 0:01:00]}  h5 {[%clk 0:01:17]} 32. Nc4 {[%clk 0:00:53]}  Ra6 {[%clk 0:01:14]} 33. e5 {[%clk 0:00:53]}  Kg7 {[%clk 0:01:08]} 34. Nd6 {[%clk 0:00:48]}  g5 {[%clk 0:01:03]} 35. Rf7+ {[%clk 0:00:48]}  Kg6 {[%clk 0:01:03]} 36. Rf6+ {[%clk 0:00:48]}  Kh7 {[%clk 0:01:00]} 37. Rf7+ {[%clk 0:00:28]}  Kg6 {[%clk 0:00:57]} 38. Rf6+ {[%clk 0:00:26]}  Kh7 {[%clk 0:00:57]} 39. Ne4 {[%clk 0:00:27]}  Rxf6 {[%clk 0:00:52]} 40. Nxf6+ {[%clk 0:00:15]}  Kg6 {[%clk 0:00:52]} 41. d6 {[%clk 0:00:15]}  h4 {[%clk 0:00:47]} 42. Ke3 {[%clk 0:00:14]}  b5 {[%clk 0:00:44]} 43. Kd4 {[%clk 0:00:10]}  Be6 {[%clk 0:00:40]} 44. Ke3 {[%clk 0:00:04]}  a5 {[%clk 0:00:40]} 45. d7 {[%clk 0:00:04]}  Bxd7 {[%clk 0:00:39]} 46. Nxd7 {[%clk 0:00:05]}  Kf5 {[%clk 0:00:35]} 47. Nb8 {[%clk 0:00:05]}  b4 {[%clk 0:00:32]} 48. axb4 {[%clk 0:00:06]}  axb4 {[%clk 0:00:33]} 49. Nc6 {[%clk 0:00:06]}  b3 {[%clk 0:00:33]} 50. Nd4+ {[%clk 0:00:06]}  Kxe5 {[%clk 0:00:34]} 51. Nxb3 {[%clk 0:00:07]}  Kf5 {[%clk 0:00:32]} 52. Kf3 {[%clk 0:00:08]}  g4+ {[%clk 0:00:32]} 53. Kg2 {[%clk 0:00:08]}  Ke4 {[%clk 0:00:31]} 54. Nd2+ {[%clk 0:00:09]}  Kd3 {[%clk 0:00:31]} 55. Nf1 {[%clk 0:00:07]}  Ke2 {[%clk 0:00:30]} 56. Nh2 {[%clk 0:00:08]}  g3 {[%clk 0:00:28]} 57. Nf1 {[%clk 0:00:08]}  Kd3 {[%clk 0:00:26]} 58. Nxg3 {[%clk 0:00:08]}  hxg3 {[%clk 0:00:26]} 59. Kxg3 {[%clk 0:00:09]} 1/2-1/2


[Site "https://www.chess.com"]

[Event "Titled Tuesday Blitz June 07 Late 2022"]
[White "Rasulov, Vugar"]
[Black "Przybylski, Wojciech"]
[WhiteFideId "13402390"]
[BlackFideId "1117599"]
[WhiteElo "2560"]
[BlackElo "2133"]
[Result "1-0"]
[Round "06"]
[TimeControl "180+1"]
[Date "2022.06.07"]
[WhiteClock "0:01:16"]
[BlackClock "0:00:01"]

1. e4 {[%clk 0:03:00]}  e5 {[%clk 0:02:58]} 2. Nf3 {[%clk 0:03:00]}  Nc6 {[%clk 0:02:58]} 3. Bc4 {[%clk 0:03:01]}  Nf6 {[%clk 0:02:54]} 4. d3 {[%clk 0:03:01]}  Be7 {[%clk 0:02:54]} 5. O-O {[%clk 0:03:01]}  O-O {[%clk 0:02:53]} 6. c3 {[%clk 0:03:02]}  d6 {[%clk 0:02:52]} 7. a4 {[%clk 0:03:02]}  Na5 {[%clk 0:02:49]} 8. Ba2 {[%clk 0:03:01]}  c5 {[%clk 0:02:50]} 9. Nbd2 {[%clk 0:03:00]}  Be6 {[%clk 0:02:48]} 10. Re1 {[%clk 0:03:00]}  Bxa2 {[%clk 0:02:46]} 11. Rxa2 {[%clk 0:03:01]}  Nc6 {[%clk 0:02:45]} 12. Nf1 {[%clk 0:03:01]}  Re8 {[%clk 0:02:42]} 13. Ng3 {[%clk 0:03:02]}  Bf8 {[%clk 0:02:39]} 14. h3 {[%clk 0:03:02]}  h6 {[%clk 0:02:29]} 15. Ra1 {[%clk 0:03:01]}  d5 {[%clk 0:02:29]} 16. Qe2 {[%clk 0:02:57]}  Qd7 {[%clk 0:02:18]} 17. Nh4 {[%clk 0:02:55]}  g6 {[%clk 0:02:08]} 18. Qf3 {[%clk 0:02:51]}  dxe4 {[%clk 0:01:57]} 19. dxe4 {[%clk 0:02:47]}  Qe6 {[%clk 0:01:42]} 20. Be3 {[%clk 0:02:47]}  Na5 {[%clk 0:01:39]} 21. Rad1 {[%clk 0:02:45]}  Nc4 {[%clk 0:01:35]} 22. Bc1 {[%clk 0:02:46]}  Bg7 {[%clk 0:01:25]} 23. b3 {[%clk 0:02:46]}  Na5 {[%clk 0:01:23]} 24. c4 {[%clk 0:02:46]}  Nc6 {[%clk 0:01:22]} 25. Bb2 {[%clk 0:02:45]}  Nd4 {[%clk 0:01:17]} 26. Bxd4 {[%clk 0:02:45]}  cxd4 {[%clk 0:01:15]} 27. Qd3 {[%clk 0:02:45]}  Rad8 {[%clk 0:01:09]} 28. Nf3 {[%clk 0:02:45]}  Bf8 {[%clk 0:01:03]} 29. Qb1 {[%clk 0:02:41]}  Bb4 {[%clk 0:01:02]} 30. Rf1 {[%clk 0:02:41]}  Nd7 {[%clk 0:01:00]} 31. Ne2 {[%clk 0:02:39]}  Nc5 {[%clk 0:00:59]} 32. Nc1 {[%clk 0:02:40]}  f5 {[%clk 0:00:53]} 33. Nd3 {[%clk 0:02:35]}  fxe4 {[%clk 0:00:44]} 34. Nxc5 {[%clk 0:02:31]}  Bxc5 {[%clk 0:00:43]} 35. Qxe4 {[%clk 0:02:31]}  Bb4 {[%clk 0:00:32]} 36. Qxb7 {[%clk 0:02:25]}  Bc3 {[%clk 0:00:31]} 37. Qxa7 {[%clk 0:02:21]}  Ra8 {[%clk 0:00:20]} 38. Qb7 {[%clk 0:02:20]}  Rab8 {[%clk 0:00:20]} 39. Qe4 {[%clk 0:02:20]}  Rxb3 {[%clk 0:00:19]} 40. Rb1 {[%clk 0:02:16]}  Rxb1 {[%clk 0:00:15]} 41. Rxb1 {[%clk 0:02:17]}  Qf5 {[%clk 0:00:11]} 42. Qd5+ {[%clk 0:02:17]}  Qf7 {[%clk 0:00:11]} 43. Qd6 {[%clk 0:02:08]}  Qe6 {[%clk 0:00:09]} 44. c5 {[%clk 0:02:01]}  Qxd6 {[%clk 0:00:08]} 45. cxd6 {[%clk 0:02:02]}  e4 {[%clk 0:00:08]} 46. d7 {[%clk 0:02:01]}  Rd8 {[%clk 0:00:08]} 47. Ne5 {[%clk 0:02:01]}  d3 {[%clk 0:00:07]} 48. Nxg6 {[%clk 0:01:54]}  Rxd7 {[%clk 0:00:07]} 49. Kf1 {[%clk 0:01:51]}  Bd4 {[%clk 0:00:05]} 50. Nf4 {[%clk 0:01:51]}  Kf7 {[%clk 0:00:05]} 51. a5 {[%clk 0:01:48]}  Be5 {[%clk 0:00:04]} 52. g3 {[%clk 0:01:43]}  Bxf4 {[%clk 0:00:04]} 53. gxf4 {[%clk 0:01:44]}  Ra7 {[%clk 0:00:03]} 54. Rb5 {[%clk 0:01:44]}  Rc7 {[%clk 0:00:03]} 55. Rb1 {[%clk 0:01:28]}  Ke6 {[%clk 0:00:03]} 56. a6 {[%clk 0:01:25]}  Ra7 {[%clk 0:00:01]} 57. Ra1 {[%clk 0:01:24]}  Kf5 {[%clk 0:00:01]} 58. f3 {[%clk 0:01:14]}  Kxf4 {[%clk 0:00:02]} 59. fxe4 {[%clk 0:01:15]}  Kxe4 {[%clk 0:00:02]} 60. Ke1 {[%clk 0:01:15]}  Ke3 {[%clk 0:00:03]} 61. Ra3 {[%clk 0:01:15]}  h5 {[%clk 0:00:03]} 62. Ra5 {[%clk 0:01:14]}  h4 {[%clk 0:00:03]} 63. Re5+ {[%clk 0:01:14]}  Kd4 {[%clk 0:00:03]} 64. Re6 {[%clk 0:01:14]}  Kd5 {[%clk 0:00:03]} 65. Rh6 {[%clk 0:01:14]}  Kd4 {[%clk 0:00:03]} 66. Kd2 {[%clk 0:01:15]}  Kc4 {[%clk 0:00:03]} 67. Rxh4+ {[%clk 0:01:15]}  Kd5 {[%clk 0:00:03]} 68. Rh6 {[%clk 0:01:16]}  Ke4 {[%clk 0:00:03]} 69. h4 {[%clk 0:01:16]}  Kf4 {[%clk 0:00:03]} 70. Kxd3 {[%clk 0:01:16]}  Kg4 {[%clk 0:00:03]} 71. Kc4 {[%clk 0:01:16]}  Kf5 {[%clk 0:00:01]} 72. Kb5 {[%clk 0:01:16]} 1-0


[Site "https://www.chess.com"]

[Event "Titled Tuesday Blitz June 07 Late 2022"]
[White "Rohl Montes, Juan Armando"]
[Black "Paravyan, David"]
[WhiteFideId "3900487"]
[BlackFideId "4194985"]
[WhiteElo "2359"]
[BlackElo "2569"]
[Result "0-1"]
[Round "06"]
[TimeControl "180+1"]
[Date "2022.06.07"]
[WhiteClock "0:00:07"]
[BlackClock "0:01:33"]

1. e4 {[%clk 0:03:00]}  e5 {[%clk 0:02:59]} 2. Nc3 {[%clk 0:02:59]}  Nf6 {[%clk 0:02:59]} 3. Nf3 {[%clk 0:03:00]}  Nc6 {[%clk 0:02:59]} 4. d4 {[%clk 0:03:00]}  exd4 {[%clk 0:02:59]} 5. Nxd4 {[%clk 0:03:01]}  Bb4 {[%clk 0:03:00]} 6. Nxc6 {[%clk 0:03:01]}  bxc6 {[%clk 0:03:00]} 7. Bd3 {[%clk 0:03:02]}  O-O {[%clk 0:03:01]} 8. O-O {[%clk 0:03:02]}  d5 {[%clk 0:03:01]} 9. exd5 {[%clk 0:03:03]}  Bg4 {[%clk 0:03:02]} 10. Be2 {[%clk 0:03:03]}  Bxe2 {[%clk 0:03:01]} 11. Nxe2 {[%clk 0:03:04]}  Re8 {[%clk 0:03:02]} 12. c3 {[%clk 0:02:59]}  Bc5 {[%clk 0:03:01]} 13. Bg5 {[%clk 0:02:57]}  Qxd5 {[%clk 0:02:59]} 14. Qxd5 {[%clk 0:02:56]}  cxd5 {[%clk 0:02:54]} 15. Ng3 {[%clk 0:02:51]}  Ne4 {[%clk 0:02:51]} 16. Nxe4 {[%clk 0:02:50]}  Rxe4 {[%clk 0:02:52]} 17. Rfe1 {[%clk 0:02:43]}  Rae8 {[%clk 0:02:50]} 18. Kf1 {[%clk 0:02:39]}  f6 {[%clk 0:02:44]} 19. Bd2 {[%clk 0:02:32]}  Kf7 {[%clk 0:02:43]} 20. f3 {[%clk 0:02:32]}  Rxe1+ {[%clk 0:02:39]} 21. Rxe1 {[%clk 0:02:33]}  Rb8 {[%clk 0:02:37]} 22. b4 {[%clk 0:02:27]}  Bd6 {[%clk 0:02:36]} 23. g3 {[%clk 0:02:23]}  c5 {[%clk 0:02:32]} 24. a3 {[%clk 0:02:16]}  h5 {[%clk 0:02:28]} 25. Be3 {[%clk 0:02:10]}  Rc8 {[%clk 0:02:14]} 26. Rc1 {[%clk 0:01:20]}  a5 {[%clk 0:01:51]} 27. bxc5 {[%clk 0:00:34]}  Bxc5 {[%clk 0:01:52]} 28. Bxc5 {[%clk 0:00:35]}  Rxc5 {[%clk 0:01:52]} 29. Ke2 {[%clk 0:00:36]}  Rc4 {[%clk 0:01:53]} 30. Kd3 {[%clk 0:00:36]}  Ra4 {[%clk 0:01:53]} 31. Ra1 {[%clk 0:00:25]}  g5 {[%clk 0:01:53]} 32. Kc2 {[%clk 0:00:25]}  g4 {[%clk 0:01:40]} 33. fxg4 {[%clk 0:00:22]}  hxg4 {[%clk 0:01:41]} 34. Kb3 {[%clk 0:00:22]}  Re4 {[%clk 0:01:41]} 35. Rd1 {[%clk 0:00:17]}  Ke6 {[%clk 0:01:40]} 36. Rd2 {[%clk 0:00:14]}  a4+ {[%clk 0:01:39]} 37. Kc2 {[%clk 0:00:12]}  Ke5 {[%clk 0:01:36]} 38. Kd3 {[%clk 0:00:07]}  d4 {[%clk 0:01:33]} 0-1


[Site "https://www.chess.com"]

[Event "Titled Tuesday Blitz June 07 Late 2022"]
[White "Steinberg, Nitzan"]
[Black "Arias Gaviria, Mario Alexis"]
[WhiteFideId "2801795"]
[BlackFideId "3800660"]
[WhiteElo "2471"]
[BlackElo "2174"]
[Result "1-0"]
[Round "06"]
[TimeControl "180+1"]
[Date "2022.06.07"]
[WhiteClock "0:00:52"]
[BlackClock "0:00:13"]

1. e4 {[%clk 0:02:56]}  c5 {[%clk 0:02:56]} 2. Nf3 {[%clk 0:02:56]}  d6 {[%clk 0:02:56]} 3. c3 {[%clk 0:02:55]}  Nf6 {[%clk 0:02:55]} 4. Be2 {[%clk 0:02:55]}  g6 {[%clk 0:02:54]} 5. O-O {[%clk 0:02:56]}  Bg7 {[%clk 0:02:55]} 6. h3 {[%clk 0:02:52]}  O-O {[%clk 0:02:55]} 7. d3 {[%clk 0:02:52]}  e5 {[%clk 0:02:54]} 8. Re1 {[%clk 0:02:51]}  Nc6 {[%clk 0:02:55]} 9. a3 {[%clk 0:02:51]}  h6 {[%clk 0:02:53]} 10. b4 {[%clk 0:02:51]}  b6 {[%clk 0:02:53]} 11. Nbd2 {[%clk 0:02:48]}  Nh7 {[%clk 0:02:52]} 12. Nc4 {[%clk 0:02:44]}  Be6 {[%clk 0:02:50]} 13. b5 {[%clk 0:02:42]}  Ne7 {[%clk 0:02:49]} 14. a4 {[%clk 0:02:42]}  f5 {[%clk 0:02:46]} 15. a5 {[%clk 0:02:36]}  Qc7 {[%clk 0:02:40]} 16. Nfd2 {[%clk 0:02:18]}  d5 {[%clk 0:02:30]} 17. exd5 {[%clk 0:02:18]}  Nxd5 {[%clk 0:02:31]} 18. Bb2 {[%clk 0:02:08]}  Rae8 {[%clk 0:02:28]} 19. axb6 {[%clk 0:02:06]}  axb6 {[%clk 0:02:28]} 20. g3 {[%clk 0:01:58]}  e4 {[%clk 0:02:24]} 21. dxe4 {[%clk 0:01:42]}  Nxc3 {[%clk 0:02:24]} 22. Bxc3 {[%clk 0:01:29]}  Bxc3 {[%clk 0:02:24]} 23. Ra6 {[%clk 0:01:29]}  Bd4 {[%clk 0:02:13]} 24. e5 {[%clk 0:01:25]}  Bxe5 {[%clk 0:02:01]} 25. Nxe5 {[%clk 0:01:22]}  Qxe5 {[%clk 0:02:01]} 26. Rxb6 {[%clk 0:01:14]}  Bf7 {[%clk 0:01:55]} 27. Rxg6+ {[%clk 0:01:12]}  Kh8 {[%clk 0:01:47]} 28. Rxh6 {[%clk 0:01:12]}  Rg8 {[%clk 0:01:36]} 29. Nf3 {[%clk 0:01:06]}  Qg7 {[%clk 0:01:14]} 30. Qc1 {[%clk 0:00:52]}  Bd5 {[%clk 0:00:51]} 31. Nh4 {[%clk 0:00:52]}  Qd4 {[%clk 0:00:15]} 32. Nxf5 {[%clk 0:00:52]}  Qe4 {[%clk 0:00:13]} 33. Rxh7+ {[%clk 0:00:52]} 1-0


[Site "https://www.chess.com"]

[Event "Titled Tuesday Blitz June 07 Late 2022"]
[White "Svane, Frederik"]
[Black "Agibileg, Uurtsaikh"]
[WhiteFideId "12923044"]
[BlackFideId "4901606"]
[WhiteElo "2459"]
[BlackElo "2205"]
[Result "1-0"]
[Round "06"]
[TimeControl "180+1"]
[Date "2022.06.07"]
[WhiteClock "0:00:39"]
[BlackClock "0:00:04"]

1. e4 {[%clk 0:03:00]}  c5 {[%clk 0:02:59]} 2. Nc3 {[%clk 0:02:59]}  d6 {[%clk 0:02:54]} 3. g3 {[%clk 0:02:56]}  Nf6 {[%clk 0:02:53]} 4. Bg2 {[%clk 0:02:56]}  g6 {[%clk 0:02:51]} 5. Nge2 {[%clk 0:02:57]}  Bg7 {[%clk 0:02:51]} 6. d3 {[%clk 0:02:57]}  O-O {[%clk 0:02:51]} 7. h3 {[%clk 0:02:57]}  Nc6 {[%clk 0:02:51]} 8. Be3 {[%clk 0:02:56]}  e5 {[%clk 0:02:46]} 9. Nd5 {[%clk 0:02:54]}  Nxd5 {[%clk 0:02:45]} 10. exd5 {[%clk 0:02:55]}  Ne7 {[%clk 0:02:34]} 11. c3 {[%clk 0:02:51]}  b5 {[%clk 0:02:29]} 12. O-O {[%clk 0:02:46]}  Bb7 {[%clk 0:02:28]} 13. Qb3 {[%clk 0:02:30]}  Rb8 {[%clk 0:02:24]} 14. f4 {[%clk 0:02:16]}  Qd7 {[%clk 0:02:02]} 15. fxe5 {[%clk 0:02:13]}  dxe5 {[%clk 0:02:03]} 16. Bxc5 {[%clk 0:02:10]}  Nxd5 {[%clk 0:01:38]} 17. Bxf8 {[%clk 0:02:09]}  Bxf8 {[%clk 0:01:39]} 18. Rf2 {[%clk 0:02:03]}  Bc5 {[%clk 0:01:36]} 19. d4 {[%clk 0:02:03]}  exd4 {[%clk 0:01:36]} 20. cxd4 {[%clk 0:02:04]}  Bb6 {[%clk 0:01:36]} 21. Raf1 {[%clk 0:02:02]}  Rf8 {[%clk 0:01:26]} 22. Kh2 {[%clk 0:01:49]}  Kg7 {[%clk 0:01:26]} 23. Nf4 {[%clk 0:01:22]}  Nxf4 {[%clk 0:01:21]} 24. Rxf4 {[%clk 0:01:22]}  Bxg2 {[%clk 0:01:20]} 25. Kxg2 {[%clk 0:01:23]}  Bxd4 {[%clk 0:01:07]} 26. Qd3 {[%clk 0:01:22]}  Qb7+ {[%clk 0:01:02]} 27. Qe4 {[%clk 0:01:22]}  Qxe4+ {[%clk 0:01:02]} 28. Rxe4 {[%clk 0:01:23]}  Bxb2 {[%clk 0:01:01]} 29. Rb1 {[%clk 0:01:23]}  Bf6 {[%clk 0:00:57]} 30. Rxb5 {[%clk 0:01:24]}  Rc8 {[%clk 0:00:57]} 31. Ra5 {[%clk 0:01:21]}  Rc2+ {[%clk 0:00:49]} 32. Kf3 {[%clk 0:01:21]}  Rc3+ {[%clk 0:00:48]} 33. Re3 {[%clk 0:01:20]}  Rc7 {[%clk 0:00:47]} 34. Ra4 {[%clk 0:01:14]}  Bc3 {[%clk 0:00:35]} 35. Re2 {[%clk 0:01:05]}  Rd7 {[%clk 0:00:26]} 36. Re3 {[%clk 0:00:55]}  Rc7 {[%clk 0:00:25]} 37. Rd3 {[%clk 0:00:54]}  h5 {[%clk 0:00:23]} 38. Rd6 {[%clk 0:00:52]}  Be5 {[%clk 0:00:22]} 39. Rd3 {[%clk 0:00:51]}  Bc3 {[%clk 0:00:22]} 40. g4 {[%clk 0:00:47]}  hxg4+ {[%clk 0:00:18]} 41. hxg4 {[%clk 0:00:48]}  Bf6 {[%clk 0:00:18]} 42. Rda3 {[%clk 0:00:46]}  Rc1 {[%clk 0:00:16]} 43. Rxa7 {[%clk 0:00:44]}  Rf1+ {[%clk 0:00:15]} 44. Kg2 {[%clk 0:00:44]}  Rb1 {[%clk 0:00:14]} 45. Rb3 {[%clk 0:00:44]}  Rc1 {[%clk 0:00:11]} 46. Rbb7 {[%clk 0:00:44]}  Rc2+ {[%clk 0:00:12]} 47. Kf3 {[%clk 0:00:44]}  Rc3+ {[%clk 0:00:12]} 48. Ke2 {[%clk 0:00:44]}  Kh6 {[%clk 0:00:11]} 49. Rxf7 {[%clk 0:00:44]}  Bd4 {[%clk 0:00:10]} 50. Ra5 {[%clk 0:00:40]}  Rg3 {[%clk 0:00:11]} 51. g5+ {[%clk 0:00:39]}  Kh5 {[%clk 0:00:08]} 52. Rh7+ {[%clk 0:00:39]}  Kg4 {[%clk 0:00:07]} 53. Ra4 {[%clk 0:00:39]}  Re3+ {[%clk 0:00:04]} 54. Kd2 {[%clk 0:00:39]}  Re4 {[%clk 0:00:04]} 55. Kd3 {[%clk 0:00:39]} 1-0


[Site "https://www.chess.com"]